{"text_format":"3","workbook":"xlsx","n_sheets":5,"sheets":["Planilha1","Visão geral do orçamento","Resumo do orçamento","Despesas mensais","Dados adicionais"],"not_rendered":{"charts":1,"defined_names":7,"pivot_tables":2},"read":"whole","date_system":"1900"}

{"sheet":"Planilha1","index":0,"n_rows":12,"n_cols":3,"rows_kept":12,"hidden":true}
["Campo Calculado"]
["Ordem de Resolução","Campo","Fórmula"]
[]
["Item Calculado"]
["Ordem de Resolução","Item","Fórmula"]
[]
[]
["Observação:","Quando uma célula é atualizada por mais de uma fórmula,"]
[null,"o valor é definido pela fórmula com a última ordem de resolução."]
[]
[null,"Para alterar a ordem de resolução de vários itens ou campos calculados,"]
[null,"na guia Opções, no grupo Cálculos, clique em Campos, Itens e Conjuntos e clique em Resolver Ordem."]

{"sheet":"Visão geral do orçamento","index":1,"n_rows":16,"n_cols":8,"rows_kept":16,"merged":[[0,1,0,6],[1,1,1,2],[3,1,3,2],[4,1,4,2],[5,1,5,2]]}
[null,"VISÃO GERAL DO ORÇAMENTO",{"$nulls":5}," "]
[null,"Saldo"]
[]
[null,"Saldo previsto",null,{"$f":"Receita_Projetada-Despesas_Projetadas","v":{"v":1585,"d":"R$ 1,585"}},null,"Projetado menos as despesas"]
[null,"Saldo real ",null,{"$f":"Receita_Real-Despesas_Reais","v":{"v":1740,"d":"R$ 1,740"}},null,"Real menos as despesas"]
[null,"Diferença",null,{"$f":"D5-D4","v":{"v":155,"d":"R$ 155"}},null,"Real menos o projetado"]
[]
[null,"Receita",{"$nulls":3},"Despesas"]
[]
[null,null,"Projetado","Real",null,"Projetado","Real"]
[null,"Receita 1",{"v":6000,"d":"R$ 6,000"},{"v":5800,"d":"R$ 5,800"},null,{"$f":"SUM(Tabela_Despesas_Mensais[Custo projetado])","v":{"v":7915,"d":"R$ 7,915"}},{"$f":"SUM(Tabela_Despesas_Mensais[Custo real])","v":{"v":7860,"d":"R$ 7,860"}}]
[null,"Renda 2",{"v":1000,"d":"R$ 1,000"},{"v":2300,"d":"R$ 2,300"}]
[null,"Renda extra",{"v":2500,"d":"R$ 2,500"},{"v":1500,"d":"R$ 1,500"}]
[null,"Total da receita",{"$f":"SUM(C11:C13)","v":{"v":9500,"d":"R$ 9,500"}},{"$f":"SUM(D11:D13)","v":{"v":9600,"d":"R$ 9,600"}}]
[]
[null,"Divisão das despesas reais"]

{"sheet":"Resumo do orçamento","index":2,"n_rows":45,"n_cols":7,"rows_kept":45,"merged":[[0,1,0,4]]}
[null,"RESUMO DO ORÇAMENTO",{"$nulls":4}," "]
[]
[null,"Categories","Custo projetado ","Custo real ","Diferença "]
[null,"Filhos",{"v":140,"d":"R$ 140"},{"v":140,"d":"R$ 140"},{"v":0,"d":"R$ 0"}]
[null,"Atividades extracurriculares",{"v":40,"d":"R$ 40"},{"v":40,"d":"R$ 40"},{"v":0,"d":"R$ 0"}]
[null,"Material escolar",null,null,{"v":0,"d":"R$ 0"}]
[null,"Médico",null,null,{"v":0,"d":"R$ 0"}]
[null,"Mensalidade escolar",{"v":100,"d":"R$ 100"},{"v":100,"d":"R$ 100"},{"v":0,"d":"R$ 0"}]
[]
[null,"Entretenimento",{"v":400,"d":"R$ 400"},{"v":358,"d":"R$ 358"},{"v":42,"d":"R$ 42"}]
[null,"Eventos esportivos",{"v":0,"d":"R$ 0"},{"v":40,"d":"R$ 40"},{"v":-40,"d":"-R$ 40"}]
[null,"Filmes",{"v":50,"d":"R$ 50"},{"v":28,"d":"R$ 28"},{"v":22,"d":"R$ 22"}]
[null,"Música (CDs, downloads, etc.)",{"v":50,"d":"R$ 50"},{"v":30,"d":"R$ 30"},{"v":20,"d":"R$ 20"}]
[null,"Shows",{"v":50,"d":"R$ 50"},{"v":40,"d":"R$ 40"},{"v":10,"d":"R$ 10"}]
[null,"Teatro ao vivo",{"v":200,"d":"R$ 200"},{"v":150,"d":"R$ 150"},{"v":50,"d":"R$ 50"}]
[null,"Vídeo/DVD (compra)",{"v":20,"d":"R$ 20"},{"v":50,"d":"R$ 50"},{"v":-30,"d":"-R$ 30"}]
[null,"Vídeo/Dvd (locação)",{"v":30,"d":"R$ 30"},{"v":20,"d":"R$ 20"},{"v":10,"d":"R$ 10"}]
[]
[null,"Comida",{"v":1100,"d":"R$ 1,100"},{"v":1320,"d":"R$ 1,320"},{"v":-220,"d":"-R$ 220"}]
[]
[null,"Presentes e instituições beneficentes",{"v":100,"d":"R$ 100"},{"v":125,"d":"R$ 125"},{"v":-25,"d":"-R$ 25"}]
[null,"Instituição beneficente 1",{"v":75,"d":"R$ 75"},{"v":100,"d":"R$ 100"},{"v":-25,"d":"-R$ 25"}]
[null,"Instituição beneficente 2",{"v":25,"d":"R$ 25"},{"v":25,"d":"R$ 25"},{"v":0,"d":"R$ 0"}]
[null,"Presente 1",null,null,{"v":0,"d":"R$ 0"}]
[null,"Presente 2",null,null,{"v":0,"d":"R$ 0"}]
[]
[null,"Habitação",{"v":2830,"d":"R$ 2,830"},{"v":2702,"d":"R$ 2,702"},{"v":-72,"d":"-R$ 72"}]
[]
[null,"Seguro",{"v":900,"d":"R$ 900"},{"v":900,"d":"R$ 900"},{"v":0,"d":"R$ 0"}]
[]
[null,"Empréstimos",{"v":200,"d":"R$ 200"},{"v":200,"d":"R$ 200"},{"v":0,"d":"R$ 0"}]
[]
[null,"Cuidados pessoais",{"v":150,"d":"R$ 150"},{"v":140,"d":"R$ 140"},{"v":10,"d":"R$ 10"}]
[]
[null,"Animais de estimação",{"v":170,"d":"R$ 170"},{"v":100,"d":"R$ 100"},{"v":70,"d":"R$ 70"}]
[]
[null,"Impostos",{"v":300,"d":"R$ 300"},{"v":300,"d":"R$ 300"},{"v":0,"d":"R$ 0"}]
[]
[null,"Transporte",{"v":1425,"d":"R$ 1,425"},{"v":1375,"d":"R$ 1,375"},{"v":50,"d":"R$ 50"}]
[]
[null,"Poupança",{"v":200,"d":"R$ 200"},{"v":200,"d":"R$ 200"},{"v":0,"d":"R$ 0"}]
[null,"Conta de investimentos",{"v":200,"d":"R$ 200"},{"v":200,"d":"R$ 200"},{"v":0,"d":"R$ 0"}]
[null,"Conta de aposentadoria",null,null,{"v":0,"d":"R$ 0"}]
[]
[null,"Total Geral",{"v":7915,"d":"R$ 7,915"},{"v":7860,"d":"R$ 7,860"},{"v":-145,"d":"-R$ 145"}]

{"sheet":"Despesas mensais","index":3,"n_rows":61,"n_cols":8,"rows_kept":61}
[null,"DESPESAS MENSAIS",{"$nulls":5}," "]
[null,"Descrição","Categoria","Custo projetado","Custo real","Diferença","Visão do custo real"]
[null,"Atividades extracurriculares","Filhos",{"v":40,"d":"R$ 40"},{"v":40,"d":"R$ 40"},{"$f":"IF(OR(Tabela_Despesas_Mensais[[#This Row],[Custo projetado]]=\"\",Tabela_Despesas_Mensais[[#This Row],[Custo real]]=\"\"),\"\",Tabela_Despesas_Mensais[[#This Row],[Custo projetado]]-Tabela_Despesas_Mensais[[#This Row],[Custo real]])","v":{"v":0,"d":"R$ 0"}},{"$f":"Tabela_Despesas_Mensais[[#This Row],[Custo real]]","v":40}]
[null,"Médico","Filhos",null,null,{"$f":"IF(OR(Tabela_Despesas_Mensais[[#This Row],[Custo projetado]]=\"\",Tabela_Despesas_Mensais[[#This Row],[Custo real]]=\"\"),\"\",Tabela_Despesas_Mensais[[#This Row],[Custo projetado]]-Tabela_Despesas_Mensais[[#This Row],[Custo real]])","v":""},{"$f":"Tabela_Despesas_Mensais[[#This Row],[Custo real]]","v":0}]
[null,"Material escolar","Filhos",null,null,{"$f":"IF(OR(Tabela_Despesas_Mensais[[#This Row],[Custo projetado]]=\"\",Tabela_Despesas_Mensais[[#This Row],[Custo real]]=\"\"),\"\",Tabela_Despesas_Mensais[[#This Row],[Custo projetado]]-Tabela_Despesas_Mensais[[#This Row],[Custo real]])","v":""},{"$f":"Tabela_Despesas_Mensais[[#This Row],[Custo real]]","v":0}]
[null,"Mensalidade escolar","Filhos",{"v":100,"d":"R$ 100"},{"v":100,"d":"R$ 100"},{"$f":"IF(OR(Tabela_Despesas_Mensais[[#This Row],[Custo projetado]]=\"\",Tabela_Despesas_Mensais[[#This Row],[Custo real]]=\"\"),\"\",Tabela_Despesas_Mensais[[#This Row],[Custo projetado]]-Tabela_Despesas_Mensais[[#This Row],[Custo real]])","v":{"v":0,"d":"R$ 0"}},{"$f":"Tabela_Despesas_Mensais[[#This Row],[Custo real]]","v":100}]
[null,"Shows","Entretenimento",{"v":50,"d":"R$ 50"},{"v":40,"d":"R$ 40"},{"$f":"IF(OR(Tabela_Despesas_Mensais[[#This Row],[Custo projetado]]=\"\",Tabela_Despesas_Mensais[[#This Row],[Custo real]]=\"\"),\"\",Tabela_Despesas_Mensais[[#This Row],[Custo projetado]]-Tabela_Despesas_Mensais[[#This Row],[Custo real]])","v":{"v":10,"d":"R$ 10"}},{"$f":"Tabela_Despesas_Mensais[[#This Row],[Custo real]]","v":40}]
[null,"Teatro ao vivo","Entretenimento",{"v":200,"d":"R$ 200"},{"v":150,"d":"R$ 150"},{"$f":"IF(OR(Tabela_Despesas_Mensais[[#This Row],[Custo projetado]]=\"\",Tabela_Despesas_Mensais[[#This Row],[Custo real]]=\"\"),\"\",Tabela_Despesas_Mensais[[#This Row],[Custo projetado]]-Tabela_Despesas_Mensais[[#This Row],[Custo real]])","v":{"v":50,"d":"R$ 50"}},{"$f":"Tabela_Despesas_Mensais[[#This Row],[Custo real]]","v":150}]
[null,"Filmes","Entretenimento",{"v":50,"d":"R$ 50"},{"v":28,"d":"R$ 28"},{"$f":"IF(OR(Tabela_Despesas_Mensais[[#This Row],[Custo projetado]]=\"\",Tabela_Despesas_Mensais[[#This Row],[Custo real]]=\"\"),\"\",Tabela_Despesas_Mensais[[#This Row],[Custo projetado]]-Tabela_Despesas_Mensais[[#This Row],[Custo real]])","v":{"v":22,"d":"R$ 22"}},{"$f":"Tabela_Despesas_Mensais[[#This Row],[Custo real]]","v":28}]
[null,"Música (CDs, downloads, etc.)","Entretenimento",{"v":50,"d":"R$ 50"},{"v":30,"d":"R$ 30"},{"$f":"IF(OR(Tabela_Despesas_Mensais[[#This Row],[Custo projetado]]=\"\",Tabela_Despesas_Mensais[[#This Row],[Custo real]]=\"\"),\"\",Tabela_Despesas_Mensais[[#This Row],[Custo projetado]]-Tabela_Despesas_Mensais[[#This Row],[Custo real]])","v":{"v":20,"d":"R$ 20"}},{"$f":"Tabela_Despesas_Mensais[[#This Row],[Custo real]]","v":30}]
[null,"Eventos esportivos","Entretenimento",{"v":0,"d":"R$ 0"},{"v":40,"d":"R$ 40"},{"$f":"IF(OR(Tabela_Despesas_Mensais[[#This Row],[Custo projetado]]=\"\",Tabela_Despesas_Mensais[[#This Row],[Custo real]]=\"\"),\"\",Tabela_Despesas_Mensais[[#This Row],[Custo projetado]]-Tabela_Despesas_Mensais[[#This Row],[Custo real]])","v":{"v":-40,"d":"-R$ 40"}},{"$f":"Tabela_Despesas_Mensais[[#This Row],[Custo real]]","v":40}]
[null,"Vídeo/DVD (compra)","Entretenimento",{"v":20,"d":"R$ 20"},{"v":50,"d":"R$ 50"},{"$f":"IF(OR(Tabela_Despesas_Mensais[[#This Row],[Custo projetado]]=\"\",Tabela_Despesas_Mensais[[#This Row],[Custo real]]=\"\"),\"\",Tabela_Despesas_Mensais[[#This Row],[Custo projetado]]-Tabela_Despesas_Mensais[[#This Row],[Custo real]])","v":{"v":-30,"d":"-R$ 30"}},{"$f":"Tabela_Despesas_Mensais[[#This Row],[Custo real]]","v":50}]
[null,"Vídeo/Dvd (locação)","Entretenimento",{"v":30,"d":"R$ 30"},{"v":20,"d":"R$ 20"},{"$f":"IF(OR(Tabela_Despesas_Mensais[[#This Row],[Custo projetado]]=\"\",Tabela_Despesas_Mensais[[#This Row],[Custo real]]=\"\"),\"\",Tabela_Despesas_Mensais[[#This Row],[Custo projetado]]-Tabela_Despesas_Mensais[[#This Row],[Custo real]])","v":{"v":10,"d":"R$ 10"}},{"$f":"Tabela_Despesas_Mensais[[#This Row],[Custo real]]","v":20}]
[null,"Jantar fora","Comida",{"v":1000,"d":"R$ 1,000"},{"v":1200,"d":"R$ 1,200"},{"$f":"IF(OR(Tabela_Despesas_Mensais[[#This Row],[Custo projetado]]=\"\",Tabela_Despesas_Mensais[[#This Row],[Custo real]]=\"\"),\"\",Tabela_Despesas_Mensais[[#This Row],[Custo projetado]]-Tabela_Despesas_Mensais[[#This Row],[Custo real]])","v":{"v":-200,"d":"-R$ 200"}},{"$f":"Tabela_Despesas_Mensais[[#This Row],[Custo real]]","v":1200}]
[null,"Supermercado","Comida",{"v":100,"d":"R$ 100"},{"v":120,"d":"R$ 120"},{"$f":"IF(OR(Tabela_Despesas_Mensais[[#This Row],[Custo projetado]]=\"\",Tabela_Despesas_Mensais[[#This Row],[Custo real]]=\"\"),\"\",Tabela_Despesas_Mensais[[#This Row],[Custo projetado]]-Tabela_Despesas_Mensais[[#This Row],[Custo real]])","v":{"v":-20,"d":"-R$ 20"}},{"$f":"Tabela_Despesas_Mensais[[#This Row],[Custo real]]","v":120}]
[null,"Instituição beneficente 1","Presentes e instituições beneficentes",{"v":75,"d":"R$ 75"},{"v":100,"d":"R$ 100"},{"$f":"IF(OR(Tabela_Despesas_Mensais[[#This Row],[Custo projetado]]=\"\",Tabela_Despesas_Mensais[[#This Row],[Custo real]]=\"\"),\"\",Tabela_Despesas_Mensais[[#This Row],[Custo projetado]]-Tabela_Despesas_Mensais[[#This Row],[Custo real]])","v":{"v":-25,"d":"-R$ 25"}},{"$f":"Tabela_Despesas_Mensais[[#This Row],[Custo real]]","v":100}]
[null,"Instituição beneficente 2","Presentes e instituições beneficentes",{"v":25,"d":"R$ 25"},{"v":25,"d":"R$ 25"},{"$f":"IF(OR(Tabela_Despesas_Mensais[[#This Row],[Custo projetado]]=\"\",Tabela_Despesas_Mensais[[#This Row],[Custo real]]=\"\"),\"\",Tabela_Despesas_Mensais[[#This Row],[Custo projetado]]-Tabela_Despesas_Mensais[[#This Row],[Custo real]])","v":{"v":0,"d":"R$ 0"}},{"$f":"Tabela_Despesas_Mensais[[#This Row],[Custo real]]","v":25}]
[null,"Presente 1","Presentes e instituições beneficentes",null,null,{"$f":"IF(OR(Tabela_Despesas_Mensais[[#This Row],[Custo projetado]]=\"\",Tabela_Despesas_Mensais[[#This Row],[Custo real]]=\"\"),\"\",Tabela_Despesas_Mensais[[#This Row],[Custo projetado]]-Tabela_Despesas_Mensais[[#This Row],[Custo real]])","v":""},{"$f":"Tabela_Despesas_Mensais[[#This Row],[Custo real]]","v":0}]
[null,"Presente 2","Presentes e instituições beneficentes",null,null,{"$f":"IF(OR(Tabela_Despesas_Mensais[[#This Row],[Custo projetado]]=\"\",Tabela_Despesas_Mensais[[#This Row],[Custo real]]=\"\"),\"\",Tabela_Despesas_Mensais[[#This Row],[Custo projetado]]-Tabela_Despesas_Mensais[[#This Row],[Custo real]])","v":""},{"$f":"Tabela_Despesas_Mensais[[#This Row],[Custo real]]","v":0}]
[null,"TV a cabo/satélite","Habitação",{"v":100,"d":"R$ 100"},{"v":100,"d":"R$ 100"},{"$f":"IF(OR(Tabela_Despesas_Mensais[[#This Row],[Custo projetado]]=\"\",Tabela_Despesas_Mensais[[#This Row],[Custo real]]=\"\"),\"\",Tabela_Despesas_Mensais[[#This Row],[Custo projetado]]-Tabela_Despesas_Mensais[[#This Row],[Custo real]])","v":{"v":0,"d":"R$ 0"}},{"$f":"Tabela_Despesas_Mensais[[#This Row],[Custo real]]","v":100}]
[null,"Eletricidade","Habitação",{"v":45,"d":"R$ 45"},{"v":50,"d":"R$ 50"},{"$f":"IF(OR(Tabela_Despesas_Mensais[[#This Row],[Custo projetado]]=\"\",Tabela_Despesas_Mensais[[#This Row],[Custo real]]=\"\"),\"\",Tabela_Despesas_Mensais[[#This Row],[Custo projetado]]-Tabela_Despesas_Mensais[[#This Row],[Custo real]])","v":{"v":-5,"d":"-R$ 5"}},{"$f":"Tabela_Despesas_Mensais[[#This Row],[Custo real]]","v":50}]
[null,"Gás","Habitação",{"v":300,"d":"R$ 300"},{"v":400,"d":"R$ 400"},{"$f":"IF(OR(Tabela_Despesas_Mensais[[#This Row],[Custo projetado]]=\"\",Tabela_Despesas_Mensais[[#This Row],[Custo real]]=\"\"),\"\",Tabela_Despesas_Mensais[[#This Row],[Custo projetado]]-Tabela_Despesas_Mensais[[#This Row],[Custo real]])","v":{"v":-100,"d":"-R$ 100"}},{"$f":"Tabela_Despesas_Mensais[[#This Row],[Custo real]]","v":400}]
[null,"Serviço de limpeza de casa","Habitação",{"v":200,"d":"R$ 200"},null,{"$f":"IF(OR(Tabela_Despesas_Mensais[[#This Row],[Custo projetado]]=\"\",Tabela_Despesas_Mensais[[#This Row],[Custo real]]=\"\"),\"\",Tabela_Despesas_Mensais[[#This Row],[Custo projetado]]-Tabela_Despesas_Mensais[[#This Row],[Custo real]])","v":""},{"$f":"Tabela_Despesas_Mensais[[#This Row],[Custo real]]","v":0}]
[null,"Manutenção","Habitação",{"v":200,"d":"R$ 200"},{"v":150,"d":"R$ 150"},{"$f":"IF(OR(Tabela_Despesas_Mensais[[#This Row],[Custo projetado]]=\"\",Tabela_Despesas_Mensais[[#This Row],[Custo real]]=\"\"),\"\",Tabela_Despesas_Mensais[[#This Row],[Custo projetado]]-Tabela_Despesas_Mensais[[#This Row],[Custo real]])","v":{"v":50,"d":"R$ 50"}},{"$f":"Tabela_Despesas_Mensais[[#This Row],[Custo real]]","v":150}]
[null,"Hipoteca ou aluguel","Habitação",{"v":1700,"d":"R$ 1,700"},{"v":1700,"d":"R$ 1,700"},{"$f":"IF(OR(Tabela_Despesas_Mensais[[#This Row],[Custo projetado]]=\"\",Tabela_Despesas_Mensais[[#This Row],[Custo real]]=\"\"),\"\",Tabela_Despesas_Mensais[[#This Row],[Custo projetado]]-Tabela_Despesas_Mensais[[#This Row],[Custo real]])","v":{"v":0,"d":"R$ 0"}},{"$f":"Tabela_Despesas_Mensais[[#This Row],[Custo real]]","v":1700}]
[null,"Gás natural/petróleo","Habitação",null,null,{"$f":"IF(OR(Tabela_Despesas_Mensais[[#This Row],[Custo projetado]]=\"\",Tabela_Despesas_Mensais[[#This Row],[Custo real]]=\"\"),\"\",Tabela_Despesas_Mensais[[#This Row],[Custo projetado]]-Tabela_Despesas_Mensais[[#This Row],[Custo real]])","v":""},{"$f":"Tabela_Despesas_Mensais[[#This Row],[Custo real]]","v":0}]
[null,"Serviço de Internet","Habitação",{"v":100,"d":"R$ 100"},{"v":100,"d":"R$ 100"},{"$f":"IF(OR(Tabela_Despesas_Mensais[[#This Row],[Custo projetado]]=\"\",Tabela_Despesas_Mensais[[#This Row],[Custo real]]=\"\"),\"\",Tabela_Despesas_Mensais[[#This Row],[Custo projetado]]-Tabela_Despesas_Mensais[[#This Row],[Custo real]])","v":{"v":0,"d":"R$ 0"}},{"$f":"Tabela_Despesas_Mensais[[#This Row],[Custo real]]","v":100}]
[null,"Celular","Habitação",{"v":60,"d":"R$ 60"},{"v":60,"d":"R$ 60"},{"$f":"IF(OR(Tabela_Despesas_Mensais[[#This Row],[Custo projetado]]=\"\",Tabela_Despesas_Mensais[[#This Row],[Custo real]]=\"\"),\"\",Tabela_Despesas_Mensais[[#This Row],[Custo projetado]]-Tabela_Despesas_Mensais[[#This Row],[Custo real]])","v":{"v":0,"d":"R$ 0"}},{"$f":"Tabela_Despesas_Mensais[[#This Row],[Custo real]]","v":60}]
[null,"Telefone residencial","Habitação",{"v":35,"d":"R$ 35"},{"v":39,"d":"R$ 39"},{"$f":"IF(OR(Tabela_Despesas_Mensais[[#This Row],[Custo projetado]]=\"\",Tabela_Despesas_Mensais[[#This Row],[Custo real]]=\"\"),\"\",Tabela_Despesas_Mensais[[#This Row],[Custo projetado]]-Tabela_Despesas_Mensais[[#This Row],[Custo real]])","v":{"v":-4,"d":"-R$ 4"}},{"$f":"Tabela_Despesas_Mensais[[#This Row],[Custo real]]","v":39}]
[null,"Suprimentos","Habitação",{"v":40,"d":"R$ 40"},{"v":55,"d":"R$ 55"},{"$f":"IF(OR(Tabela_Despesas_Mensais[[#This Row],[Custo projetado]]=\"\",Tabela_Despesas_Mensais[[#This Row],[Custo real]]=\"\"),\"\",Tabela_Despesas_Mensais[[#This Row],[Custo projetado]]-Tabela_Despesas_Mensais[[#This Row],[Custo real]])","v":{"v":-15,"d":"-R$ 15"}},{"$f":"Tabela_Despesas_Mensais[[#This Row],[Custo real]]","v":55}]
[null,"Remoção e reciclagem do lixo","Habitação",{"v":25,"d":"R$ 25"},{"v":22,"d":"R$ 22"},{"$f":"IF(OR(Tabela_Despesas_Mensais[[#This Row],[Custo projetado]]=\"\",Tabela_Despesas_Mensais[[#This Row],[Custo real]]=\"\"),\"\",Tabela_Despesas_Mensais[[#This Row],[Custo projetado]]-Tabela_Despesas_Mensais[[#This Row],[Custo real]])","v":{"v":3,"d":"R$ 3"}},{"$f":"Tabela_Despesas_Mensais[[#This Row],[Custo real]]","v":22}]
[null,"Água e esgoto","Habitação",{"v":25,"d":"R$ 25"},{"v":26,"d":"R$ 26"},{"$f":"IF(OR(Tabela_Despesas_Mensais[[#This Row],[Custo projetado]]=\"\",Tabela_Despesas_Mensais[[#This Row],[Custo real]]=\"\"),\"\",Tabela_Despesas_Mensais[[#This Row],[Custo projetado]]-Tabela_Despesas_Mensais[[#This Row],[Custo real]])","v":{"v":-1,"d":"-R$ 1"}},{"$f":"Tabela_Despesas_Mensais[[#This Row],[Custo real]]","v":26}]
[null,"Saúde","Seguro",{"v":400,"d":"R$ 400"},{"v":400,"d":"R$ 400"},{"$f":"IF(OR(Tabela_Despesas_Mensais[[#This Row],[Custo projetado]]=\"\",Tabela_Despesas_Mensais[[#This Row],[Custo real]]=\"\"),\"\",Tabela_Despesas_Mensais[[#This Row],[Custo projetado]]-Tabela_Despesas_Mensais[[#This Row],[Custo real]])","v":{"v":0,"d":"R$ 0"}},{"$f":"Tabela_Despesas_Mensais[[#This Row],[Custo real]]","v":400}]
[null,"Residencial","Seguro",{"v":400,"d":"R$ 400"},{"v":400,"d":"R$ 400"},{"$f":"IF(OR(Tabela_Despesas_Mensais[[#This Row],[Custo projetado]]=\"\",Tabela_Despesas_Mensais[[#This Row],[Custo real]]=\"\"),\"\",Tabela_Despesas_Mensais[[#This Row],[Custo projetado]]-Tabela_Despesas_Mensais[[#This Row],[Custo real]])","v":{"v":0,"d":"R$ 0"}},{"$f":"Tabela_Despesas_Mensais[[#This Row],[Custo real]]","v":400}]
[null,"Vida","Seguro",{"v":100,"d":"R$ 100"},{"v":100,"d":"R$ 100"},{"$f":"IF(OR(Tabela_Despesas_Mensais[[#This Row],[Custo projetado]]=\"\",Tabela_Despesas_Mensais[[#This Row],[Custo real]]=\"\"),\"\",Tabela_Despesas_Mensais[[#This Row],[Custo projetado]]-Tabela_Despesas_Mensais[[#This Row],[Custo real]])","v":{"v":0,"d":"R$ 0"}},{"$f":"Tabela_Despesas_Mensais[[#This Row],[Custo real]]","v":100}]
[null,"Cartão de crédito 1","Empréstimos",{"v":200,"d":"R$ 200"},{"v":200,"d":"R$ 200"},{"$f":"IF(OR(Tabela_Despesas_Mensais[[#This Row],[Custo projetado]]=\"\",Tabela_Despesas_Mensais[[#This Row],[Custo real]]=\"\"),\"\",Tabela_Despesas_Mensais[[#This Row],[Custo projetado]]-Tabela_Despesas_Mensais[[#This Row],[Custo real]])","v":{"v":0,"d":"R$ 0"}},{"$f":"Tabela_Despesas_Mensais[[#This Row],[Custo real]]","v":200}]
[null,"Cartão de crédito 2","Empréstimos",null,null,{"$f":"IF(OR(Tabela_Despesas_Mensais[[#This Row],[Custo projetado]]=\"\",Tabela_Despesas_Mensais[[#This Row],[Custo real]]=\"\"),\"\",Tabela_Despesas_Mensais[[#This Row],[Custo projetado]]-Tabela_Despesas_Mensais[[#This Row],[Custo real]])","v":""},{"$f":"Tabela_Despesas_Mensais[[#This Row],[Custo real]]","v":0}]
[null,"Cartão de crédito 3","Empréstimos",null,null,{"$f":"IF(OR(Tabela_Despesas_Mensais[[#This Row],[Custo projetado]]=\"\",Tabela_Despesas_Mensais[[#This Row],[Custo real]]=\"\"),\"\",Tabela_Despesas_Mensais[[#This Row],[Custo projetado]]-Tabela_Despesas_Mensais[[#This Row],[Custo real]])","v":""},{"$f":"Tabela_Despesas_Mensais[[#This Row],[Custo real]]","v":0}]
[null,"Pessoal","Empréstimos",null,null,{"$f":"IF(OR(Tabela_Despesas_Mensais[[#This Row],[Custo projetado]]=\"\",Tabela_Despesas_Mensais[[#This Row],[Custo real]]=\"\"),\"\",Tabela_Despesas_Mensais[[#This Row],[Custo projetado]]-Tabela_Despesas_Mensais[[#This Row],[Custo real]])","v":""},{"$f":"Tabela_Despesas_Mensais[[#This Row],[Custo real]]","v":0}]
[null,"Estudante","Empréstimos",null,null,{"$f":"IF(OR(Tabela_Despesas_Mensais[[#This Row],[Custo projetado]]=\"\",Tabela_Despesas_Mensais[[#This Row],[Custo real]]=\"\"),\"\",Tabela_Despesas_Mensais[[#This Row],[Custo projetado]]-Tabela_Despesas_Mensais[[#This Row],[Custo real]])","v":""},{"$f":"Tabela_Despesas_Mensais[[#This Row],[Custo real]]","v":0}]
[null,"Vestuário","Cuidados pessoais",{"v":150,"d":"R$ 150"},{"v":140,"d":"R$ 140"},{"$f":"IF(OR(Tabela_Despesas_Mensais[[#This Row],[Custo projetado]]=\"\",Tabela_Despesas_Mensais[[#This Row],[Custo real]]=\"\"),\"\",Tabela_Despesas_Mensais[[#This Row],[Custo projetado]]-Tabela_Despesas_Mensais[[#This Row],[Custo real]])","v":{"v":10,"d":"R$ 10"}},{"$f":"Tabela_Despesas_Mensais[[#This Row],[Custo real]]","v":140}]
[null,"Lavagem a seco","Cuidados pessoais",null,null,{"$f":"IF(OR(Tabela_Despesas_Mensais[[#This Row],[Custo projetado]]=\"\",Tabela_Despesas_Mensais[[#This Row],[Custo real]]=\"\"),\"\",Tabela_Despesas_Mensais[[#This Row],[Custo projetado]]-Tabela_Despesas_Mensais[[#This Row],[Custo real]])","v":""},{"$f":"Tabela_Despesas_Mensais[[#This Row],[Custo real]]","v":0}]
[null,"Cabelo/unhas","Cuidados pessoais",null,null,{"$f":"IF(OR(Tabela_Despesas_Mensais[[#This Row],[Custo projetado]]=\"\",Tabela_Despesas_Mensais[[#This Row],[Custo real]]=\"\"),\"\",Tabela_Despesas_Mensais[[#This Row],[Custo projetado]]-Tabela_Despesas_Mensais[[#This Row],[Custo real]])","v":""},{"$f":"Tabela_Despesas_Mensais[[#This Row],[Custo real]]","v":0}]
[null,"Academia","Cuidados pessoais",null,null,{"$f":"IF(OR(Tabela_Despesas_Mensais[[#This Row],[Custo projetado]]=\"\",Tabela_Despesas_Mensais[[#This Row],[Custo real]]=\"\"),\"\",Tabela_Despesas_Mensais[[#This Row],[Custo projetado]]-Tabela_Despesas_Mensais[[#This Row],[Custo real]])","v":""},{"$f":"Tabela_Despesas_Mensais[[#This Row],[Custo real]]","v":0}]
[null,"Médico","Cuidados pessoais",null,null,{"$f":"IF(OR(Tabela_Despesas_Mensais[[#This Row],[Custo projetado]]=\"\",Tabela_Despesas_Mensais[[#This Row],[Custo real]]=\"\"),\"\",Tabela_Despesas_Mensais[[#This Row],[Custo projetado]]-Tabela_Despesas_Mensais[[#This Row],[Custo real]])","v":""},{"$f":"Tabela_Despesas_Mensais[[#This Row],[Custo real]]","v":0}]
[null,"Alimentação","Animais de estimação",{"v":150,"d":"R$ 150"},{"v":75,"d":"R$ 75"},{"$f":"IF(OR(Tabela_Despesas_Mensais[[#This Row],[Custo projetado]]=\"\",Tabela_Despesas_Mensais[[#This Row],[Custo real]]=\"\"),\"\",Tabela_Despesas_Mensais[[#This Row],[Custo projetado]]-Tabela_Despesas_Mensais[[#This Row],[Custo real]])","v":{"v":75,"d":"R$ 75"}},{"$f":"Tabela_Despesas_Mensais[[#This Row],[Custo real]]","v":75}]
[null,"Dia da Beleza","Animais de estimação",{"v":20,"d":"R$ 20"},{"v":25,"d":"R$ 25"},{"$f":"IF(OR(Tabela_Despesas_Mensais[[#This Row],[Custo projetado]]=\"\",Tabela_Despesas_Mensais[[#This Row],[Custo real]]=\"\"),\"\",Tabela_Despesas_Mensais[[#This Row],[Custo projetado]]-Tabela_Despesas_Mensais[[#This Row],[Custo real]])","v":{"v":-5,"d":"-R$ 5"}},{"$f":"Tabela_Despesas_Mensais[[#This Row],[Custo real]]","v":25}]
[null,"Médico","Animais de estimação",null,null,{"$f":"IF(OR(Tabela_Despesas_Mensais[[#This Row],[Custo projetado]]=\"\",Tabela_Despesas_Mensais[[#This Row],[Custo real]]=\"\"),\"\",Tabela_Despesas_Mensais[[#This Row],[Custo projetado]]-Tabela_Despesas_Mensais[[#This Row],[Custo real]])","v":""},{"$f":"Tabela_Despesas_Mensais[[#This Row],[Custo real]]","v":0}]
[null,"Brinquedos","Animais de estimação",null,null,{"$f":"IF(OR(Tabela_Despesas_Mensais[[#This Row],[Custo projetado]]=\"\",Tabela_Despesas_Mensais[[#This Row],[Custo real]]=\"\"),\"\",Tabela_Despesas_Mensais[[#This Row],[Custo projetado]]-Tabela_Despesas_Mensais[[#This Row],[Custo real]])","v":""},{"$f":"Tabela_Despesas_Mensais[[#This Row],[Custo real]]","v":0}]
[null,"Conta de investimentos","Poupança",{"v":200,"d":"R$ 200"},{"v":200,"d":"R$ 200"},{"$f":"IF(OR(Tabela_Despesas_Mensais[[#This Row],[Custo projetado]]=\"\",Tabela_Despesas_Mensais[[#This Row],[Custo real]]=\"\"),\"\",Tabela_Despesas_Mensais[[#This Row],[Custo projetado]]-Tabela_Despesas_Mensais[[#This Row],[Custo real]])","v":{"v":0,"d":"R$ 0"}},{"$f":"Tabela_Despesas_Mensais[[#This Row],[Custo real]]","v":200}]
[null,"Conta de aposentadoria","Poupança",null,null,{"$f":"IF(OR(Tabela_Despesas_Mensais[[#This Row],[Custo projetado]]=\"\",Tabela_Despesas_Mensais[[#This Row],[Custo real]]=\"\"),\"\",Tabela_Despesas_Mensais[[#This Row],[Custo projetado]]-Tabela_Despesas_Mensais[[#This Row],[Custo real]])","v":""},{"$f":"Tabela_Despesas_Mensais[[#This Row],[Custo real]]","v":0}]
[null,"Federal","Impostos",{"v":300,"d":"R$ 300"},{"v":300,"d":"R$ 300"},{"$f":"IF(OR(Tabela_Despesas_Mensais[[#This Row],[Custo projetado]]=\"\",Tabela_Despesas_Mensais[[#This Row],[Custo real]]=\"\"),\"\",Tabela_Despesas_Mensais[[#This Row],[Custo projetado]]-Tabela_Despesas_Mensais[[#This Row],[Custo real]])","v":{"v":0,"d":"R$ 0"}},{"$f":"Tabela_Despesas_Mensais[[#This Row],[Custo real]]","v":300}]
[null,"Local","Impostos",null,null,{"$f":"IF(OR(Tabela_Despesas_Mensais[[#This Row],[Custo projetado]]=\"\",Tabela_Despesas_Mensais[[#This Row],[Custo real]]=\"\"),\"\",Tabela_Despesas_Mensais[[#This Row],[Custo projetado]]-Tabela_Despesas_Mensais[[#This Row],[Custo real]])","v":""},{"$f":"Tabela_Despesas_Mensais[[#This Row],[Custo real]]","v":0}]
[null,"Estado","Impostos",null,null,{"$f":"IF(OR(Tabela_Despesas_Mensais[[#This Row],[Custo projetado]]=\"\",Tabela_Despesas_Mensais[[#This Row],[Custo real]]=\"\"),\"\",Tabela_Despesas_Mensais[[#This Row],[Custo projetado]]-Tabela_Despesas_Mensais[[#This Row],[Custo real]])","v":""},{"$f":"Tabela_Despesas_Mensais[[#This Row],[Custo real]]","v":0}]
[null,"Ônibus ou carona solidária","Transporte",{"v":100,"d":"R$ 100"},{"v":150,"d":"R$ 150"},{"$f":"IF(OR(Tabela_Despesas_Mensais[[#This Row],[Custo projetado]]=\"\",Tabela_Despesas_Mensais[[#This Row],[Custo real]]=\"\"),\"\",Tabela_Despesas_Mensais[[#This Row],[Custo projetado]]-Tabela_Despesas_Mensais[[#This Row],[Custo real]])","v":{"v":-50,"d":"-R$ 50"}},{"$f":"Tabela_Despesas_Mensais[[#This Row],[Custo real]]","v":150}]
[null,"Combustível","Transporte",{"v":450,"d":"R$ 450"},{"v":400,"d":"R$ 400"},{"$f":"IF(OR(Tabela_Despesas_Mensais[[#This Row],[Custo projetado]]=\"\",Tabela_Despesas_Mensais[[#This Row],[Custo real]]=\"\"),\"\",Tabela_Despesas_Mensais[[#This Row],[Custo projetado]]-Tabela_Despesas_Mensais[[#This Row],[Custo real]])","v":{"v":50,"d":"R$ 50"}},{"$f":"Tabela_Despesas_Mensais[[#This Row],[Custo real]]","v":400}]
[null,"Seguro","Transporte",{"v":300,"d":"R$ 300"},{"v":300,"d":"R$ 300"},{"$f":"IF(OR(Tabela_Despesas_Mensais[[#This Row],[Custo projetado]]=\"\",Tabela_Despesas_Mensais[[#This Row],[Custo real]]=\"\"),\"\",Tabela_Despesas_Mensais[[#This Row],[Custo projetado]]-Tabela_Despesas_Mensais[[#This Row],[Custo real]])","v":{"v":0,"d":"R$ 0"}},{"$f":"Tabela_Despesas_Mensais[[#This Row],[Custo real]]","v":300}]
[null,"Licenciamento ","Transporte",{"v":25,"d":"R$ 25"},{"v":25,"d":"R$ 25"},{"$f":"IF(OR(Tabela_Despesas_Mensais[[#This Row],[Custo projetado]]=\"\",Tabela_Despesas_Mensais[[#This Row],[Custo real]]=\"\"),\"\",Tabela_Despesas_Mensais[[#This Row],[Custo projetado]]-Tabela_Despesas_Mensais[[#This Row],[Custo real]])","v":{"v":0,"d":"R$ 0"}},{"$f":"Tabela_Despesas_Mensais[[#This Row],[Custo real]]","v":25}]
[null,"Manutenção","Transporte",{"v":100,"d":"R$ 100"},{"v":50,"d":"R$ 50"},{"$f":"IF(OR(Tabela_Despesas_Mensais[[#This Row],[Custo projetado]]=\"\",Tabela_Despesas_Mensais[[#This Row],[Custo real]]=\"\"),\"\",Tabela_Despesas_Mensais[[#This Row],[Custo projetado]]-Tabela_Despesas_Mensais[[#This Row],[Custo real]])","v":{"v":50,"d":"R$ 50"}},{"$f":"Tabela_Despesas_Mensais[[#This Row],[Custo real]]","v":50}]
[null,"Taxas de estacionamento","Transporte",null,null,{"$f":"IF(OR(Tabela_Despesas_Mensais[[#This Row],[Custo projetado]]=\"\",Tabela_Despesas_Mensais[[#This Row],[Custo real]]=\"\"),\"\",Tabela_Despesas_Mensais[[#This Row],[Custo projetado]]-Tabela_Despesas_Mensais[[#This Row],[Custo real]])","v":""},{"$f":"Tabela_Despesas_Mensais[[#This Row],[Custo real]]","v":0}]
[null,"Pagamento de veículo","Transporte",{"v":450,"d":"R$ 450"},{"v":450,"d":"R$ 450"},{"$f":"IF(OR(Tabela_Despesas_Mensais[[#This Row],[Custo projetado]]=\"\",Tabela_Despesas_Mensais[[#This Row],[Custo real]]=\"\"),\"\",Tabela_Despesas_Mensais[[#This Row],[Custo projetado]]-Tabela_Despesas_Mensais[[#This Row],[Custo real]])","v":{"v":0,"d":"R$ 0"}},{"$f":"Tabela_Despesas_Mensais[[#This Row],[Custo real]]","v":450}]

{"sheet":"Dados adicionais","index":4,"n_rows":17,"n_cols":9,"rows_kept":17}
[null,"DADOS ADICIONAIS",{"$nulls":3}," "]
[null,"Tabela dinâmica para o gráfico de orçamento",null,null,"Lista de categorias"]
[]
[null,"Categories","Custo",null,"Para adicionar uma categoria, digite abaixo",{"$nulls":3},"`"]
[null,"Animais de estimação",{"v":100,"d":"R$ 100"},null,"Filhos"]
[null,"Presentes e instituições beneficentes",{"v":125,"d":"R$ 125"},null,"Entretenimento"]
[null,"Filhos",{"v":140,"d":"R$ 140"},null,"Comida"]
[null,"Cuidados pessoais",{"v":140,"d":"R$ 140"},null,"Presentes e instituições beneficentes"]
[null,"Poupança",{"v":200,"d":"R$ 200"},null,"Habitação"]
[null,"Empréstimos",{"v":200,"d":"R$ 200"},null,"Seguro"]
[null,"Impostos",{"v":300,"d":"R$ 300"},null,"Empréstimos"]
[null,"Entretenimento",{"v":358,"d":"R$ 358"},null,"Cuidados pessoais"]
[null,"Seguro",{"v":900,"d":"R$ 900"},null,"Animais de estimação"]
[null,"Comida",{"v":1320,"d":"R$ 1,320"},null,"Poupança"]
[null,"Transporte",{"v":1375,"d":"R$ 1,375"},null,"Impostos"]
[null,"Habitação",{"v":2702,"d":"R$ 2,702"},null,"Transporte"]
[null,"Total Geral",{"v":7860,"d":"R$ 7,860"}]